lending/lending_fUSD_20241005
["ID","MTS","AMOUNT","RATE_DAILY","PERIOD"]
[339871560,1728096655716,-745.84,0.00041253,120]
[339871561,1728096655725,-237.64748633,0.00041253,120]
[339871562,1728096655734,-500.0,0.00041253,120]
[339871563,1728096655743,-500.0,0.00041253,120]
[339871564,1728096655753,-505.8,0.00041271,120]
[339871565,1728096655762,-511.69,0.0004128,120]
[339871566,1728096655771,-4279.48648006,0.000415,120]
[339871567,1728096655780,-799.0,0.00041515,30]
[339871568,1728096655789,-842.08350976,0.00041517,7]
[339871569,1728096655798,-500.0,0.00041526,120]
[339871570,1728096655806,-1000.0,0.00041526,120]
[339871571,1728096655815,-627.24,0.00041526,120]
[339871572,1728096655824,-1273.88,0.00041526,120]
[339871573,1728096655833,-500.0,0.00041526,21]
[339871574,1728096655842,-500.0,0.00041526,120]
[339871575,1728096655851,-933.86,0.00041526,120]
[339871576,1728096655860,-500.0,0.00041526,2]
[339871577,1728096655869,-500.0,0.00041527,120]
[339871578,1728096655879,-166.77,0.00041527,120]
[339871579,1728096655888,-587.63,0.00041527,120]
[339871580,1728096655897,-808.03,0.00041527,120]
[339871581,1728096655906,-623.29,0.00041527,120]
[339871582,1728096655917,-961.62,0.00041527,120]
[339871583,1728096655927,-500.0,0.00041527,120]
[339871584,1728096655938,-500.0,0.00041527,120]
[339871585,1728096655947,-500.0,0.00041527,120]
[339871586,1728096655958,-898.86,0.00041527,120]
[339871587,1728096655968,-561.07,0.00041527,120]
[339871588,1728096655980,-647.57,0.00041527,120]
[339871589,1728096655989,-500.0,0.00041527,120]
[339871590,1728096655998,-679.43,0.00041527,120]
[339871591,1728096656009,-500.0,0.00041527,120]
[339871592,1728096656021,-524.52,0.00041527,120]
[339871593,1728096656031,-625.97,0.00041527,120]
[339871594,1728096656041,-541.71,0.00041527,120]
[339871595,1728096656050,-586.97,0.00041527,120]
[339871596,1728096656059,-826.94,0.00041527,120]
[339871597,1728096656068,-595.32,0.00041527,120]
[339871598,1728096656077,-723.7,0.00041527,120]
[339871599,1728096656086,-745.84,0.00041527,120]
[339871600,1728096656095,-500.0,0.00041527,120]
[339871601,1728096656105,-500.0,0.00041527,120]
[339871602,1728096656114,-505.8,0.00041545,120]
[339871603,1728096656123,-511.69,0.00041554,120]
[339871604,1728096656133,-3075.19904756,0.0004158,120]
[339871605,1728096656142,-193.59002655,0.000418,120]
[339871606,1728096656150,-500.0,0.000418,120]
[339871607,1728096656159,-1000.0,0.000418,120]
[339871608,1728096656168,-627.24,0.000418,120]
[339871609,1728096656177,-1273.88,0.000418,120]
[339871610,1728096656186,-500.0,0.000418,21]
[339871611,1728096656196,-500.0,0.000418,120]
[339871612,1728096656205,-933.86,0.000418,120]
[339871613,1728096656214,-500.0,0.000418,2]
[339871614,1728096656223,-625.49,0.00041801,120]
[339871615,1728096656232,-587.63,0.00041801,120]
[339871616,1728096656241,-808.03,0.00041801,120]
[339871617,1728096656251,-623.29,0.00041801,120]
[339871618,1728096656260,-961.62,0.00041801,120]
[339871619,1728096656269,-500.0,0.00041801,120]
[339871620,1728096656278,-500.0,0.00041801,120]
[339871621,1728096656287,-603.0631822,0.00041801,120]
[339871622,1728096656296,-898.86,0.00041801,120]
[339871623,1728096656305,-561.07,0.00041801,120]
[339871624,1728096656314,-647.57,0.00041801,120]
[339871625,1728096656323,-500.0,0.00041801,120]
[339871626,1728096656332,-679.43,0.00041801,120]
[339871627,1728096656341,-500.0,0.00041801,120]
[339871628,1728096656352,-524.52,0.00041801,120]
[339871629,1728096656361,-625.97,0.00041801,120]
[339871630,1728096656373,-541.71,0.00041801,120]
[339871631,1728096656382,-586.97,0.00041801,120]
[339871632,1728096656391,-826.94,0.00041801,120]
[339871633,1728096656401,-595.32,0.00041801,120]
[339871634,1728096656410,-723.7,0.00041801,120]
[339871635,1728096656419,-745.84,0.00041801,120]
[339871636,1728096656428,-500.0,0.00041801,120]
[339871637,1728096656436,-500.0,0.00041801,120]
[339871638,1728096656445,-505.8,0.00041819,120]
[339871639,1728096656454,-511.69,0.00041828,120]
[339871640,1728096656464,-500.0,0.00041829,120]
[339871641,1728096656482,-500.0,0.00041829,120]
[339871642,1728096656500,-976.3879188,0.00042,43]
[339871643,1728096656520,-842.08350976,0.00042064,7]
[339871644,1728096656540,-500.0,0.00042074,120]
[339871645,1728096656561,-1000.0,0.00042074,120]
[339871646,1728096656581,-627.24,0.00042074,120]
[339871647,1728096656603,-1273.88,0.00042074,120]
[339871648,1728096656622,-500.0,0.00042074,21]
[339871649,1728096656643,-500.0,0.00042074,120]
[339871650,1728096656664,-933.86,0.00042074,120]
[339871651,1728096656685,-500.0,0.00042074,2]
[339871652,1728096656705,-587.63,0.00042075,120]
[339871653,1728096656715,-808.03,0.00042075,120]
[339871654,1728096656724,-623.29,0.00042075,120]
[339871655,1728096656733,-961.62,0.00042075,120]
[339871656,1728096656742,-500.0,0.00042075,120]
[339871657,1728096656751,-500.0,0.00042075,120]
[339871658,1728096656760,-898.86,0.00042075,120]
[339871659,1728096656769,-561.07,0.00042075,120]
[339871660,1728096656778,-647.57,0.00042075,120]
[339871661,1728096656787,-500.0,0.00042075,120]
[339871662,1728096656796,-679.43,0.00042075,120]
[339871663,1728096656806,-500.0,0.00042075,120]
[339871664,1728096656815,-524.52,0.00042075,120]
[339871665,1728096656824,-625.97,0.00042075,120]
[339871666,1728096656833,-541.71,0.00042075,120]
[339871667,1728096656842,-586.97,0.00042075,120]
[339871668,1728096656852,-826.94,0.00042075,120]
[339871669,1728096656862,-595.32,0.00042075,120]
[339871670,1728096656871,-723.7,0.00042075,120]
[339871671,1728096656881,-745.84,0.00042075,120]
[339871672,1728096656890,-500.0,0.00042075,120]
[339871673,1728096656899,-500.0,0.00042075,120]
[339871674,1728096656910,-505.8,0.00042093,120]
[339871675,1728096656919,-511.69,0.00042102,120]
[339871676,1728096656928,-406.57929951,0.00042225,28]
[339871677,1728096656938,-220.25,0.00042258,2]
[339871678,1728096656947,-500.0,0.00042348,120]
[339871679,1728096656956,-1000.0,0.00042348,120]
[339871680,1728096656967,-627.24,0.00042348,120]
[339871681,1728096656977,-1273.88,0.00042348,120]
[339871682,1728096656987,-500.0,0.00042348,21]
[339871683,1728096656998,-500.0,0.00042348,120]
[339871684,1728096657008,-933.86,0.00042348,120]
[339871685,1728096657017,-498.962,0.00042348,2]
[339871686,1728096657026,-587.63,0.00042349,120]
[339871687,1728096657035,-808.03,0.00042349,120]
[339871688,1728096657044,-623.29,0.00042349,120]
[339871689,1728096657053,-961.62,0.00042349,120]
[339871690,1728096657062,-346.81591943,0.00042349,120]
[339871691,1728096657071,-226.45975313,0.00042349,120]
[339871692,1728096657081,-898.86,0.00042349,120]
[339871693,1728096657092,-561.07,0.00042349,120]
[339871694,1728096657101,-647.57,0.00042349,120]
[339871695,1728096657111,-587.39447014,0.00042349,120]
[339871696,1728096657120,-679.43,0.00042349,120]
[339871697,1728096657130,-500.0,0.00042349,120]
[339871698,1728096657139,-524.52,0.00042349,120]
[339871699,1728096657150,-625.97,0.00042349,120]
[339871700,1728096657160,-541.71,0.00042349,120]
[339871701,1728096657172,-586.97,0.00042349,120]
[339871702,1728096657183,-826.94,0.00042349,120]
[339871703,1728096657193,-595.32,0.00042349,120]
[339871704,1728096657202,-723.7,0.00042349,120]
[339871705,1728096657212,-745.84,0.00042349,120]
[339871706,1728096657221,-190.22668605,0.00042349,120]
[339871707,1728096657230,-186.56087455,0.00042349,120]
[339871708,1728096657239,-500.0,0.00042355,10]
[339871709,1728096657249,-505.8,0.00042367,120]
[339871710,1728096657259,-511.69,0.00042376,120]
[339871711,1728096657268,-842.08350976,0.0004249,7]
[339871712,1728096657278,-2013.94488372,0.000425,60]
[339871713,1728096657287,-233.92,0.00042622,120]
[339871714,1728096657295,-1000.0,0.00042622,120]
[339871715,1728096657305,-627.24,0.00042622,120]
[339871716,1728096657315,-1273.88,0.00042622,120]
[339871717,1728096657324,-362.44,0.00042622,21]
[339871718,1728096657333,-500.0,0.00042622,120]
[339871719,1728096657343,-933.86,0.00042622,120]
[339871720,1728096657352,-587.63,0.00042623,120]
[339871721,1728096657361,-808.03,0.00042623,120]
[339871722,1728096657375,-623.29,0.00042623,120]
[339871723,1728096657384,-961.62,0.00042623,120]
[339871724,1728096657393,-898.86,0.00042623,120]
[339871725,1728096657403,-561.07,0.00042623,120]
[339871726,1728096657411,-647.57,0.00042623,120]
[339871727,1728096657420,-679.43,0.00042623,120]
[339871728,1728096657429,-500.0,0.00042623,120]
[339871729,1728096657438,-524.52,0.00042623,120]
[339871730,1728096657446,-625.97,0.00042623,120]
[339871731,1728096657455,-541.71,0.00042623,120]
[339871732,1728096657464,-586.97,0.00042623,120]
[339871733,1728096657473,-826.94,0.00042623,120]
[339871734,1728096657482,-595.32,0.00042623,120]
[339871735,1728096657491,-723.7,0.00042623,120]
[339871736,1728096657500,-745.84,0.00042623,120]
[339871737,1728096657509,-505.8,0.00042641,120]
[339871738,1728096657519,-4787.60419937,0.00042645,15]
[339871739,1728096657528,-511.69,0.0004265,120]
[339871740,1728096657537,-351.22780001,0.000428,120]
[339871741,1728096657546,-173.18979557,0.00042825,17]
[339871742,1728096657555,-1000.0,0.00042896,120]
[339871743,1728096657564,-627.24,0.00042896,120]
[339871744,1728096657573,-1273.88,0.00042896,120]
[339871745,1728096657582,-500.0,0.00042896,120]
[339871746,1728096657591,-933.86,0.00042896,120]
[339871747,1728096657600,-587.63,0.00042897,120]
[339871748,1728096657609,-808.03,0.00042897,120]
[339871749,1728096657619,-623.29,0.00042897,120]
[339871750,1728096657629,-961.62,0.00042897,120]
[339871751,1728096657639,-898.86,0.00042897,120]
[339871752,1728096657648,-561.07,0.00042897,120]
[339871753,1728096657657,-647.57,0.00042897,120]
[339871754,1728096657666,-679.43,0.00042897,120]
[339871755,1728096657676,-350.56329403,0.00042897,120]
[339871756,1728096657687,-524.52,0.00042897,120]
[339871757,1728096657697,-625.97,0.00042897,120]
[339871758,1728096657707,-541.71,0.00042897,120]
[339871759,1728096657717,-586.97,0.00042897,120]
[339871760,1728096657726,-826.94,0.00042897,120]
[339871761,1728096657735,-595.32,0.00042897,120]
[339871762,1728096657745,-723.7,0.00042897,120]
[339871763,1728096657754,-745.84,0.00042897,120]
[339871764,1728096657763,-505.8,0.00042915,120]
[339871765,1728096657772,-511.69,0.00042924,120]
[339871766,1728096657782,-842.08350976,0.0004299,7]
[339871767,1728096657790,-179.37430161,0.00043,120]
[339871768,1728096657799,-12030.2648348,0.00043,120]
[339871769,1728096657809,-174.87584966,0.00043,30]
[339871770,1728096657817,-900.0,0.00043,44]
[339871771,1728096657827,-1000.0,0.0004317,120]
[339871772,1728096657836,-627.24,0.0004317,120]
[339871773,1728096657844,-1273.88,0.0004317,120]
[339871774,1728096657853,-209.65,0.0004317,120]
[339871775,1728096657863,-933.86,0.0004317,120]
[339871776,1728096657872,-587.63379325,0.00043171,120]
[339871777,1728096657882,-808.10052276,0.00043171,120]
[339871778,1728096657890,-623.45397563,0.00043171,120]
[339871779,1728096657899,-961.68708809,0.00043171,120]
[339871780,1728096657909,-899.07903376,0.00043171,120]
[339871781,1728096657918,-561.15,0.00043171,120]
[339871782,1728096657928,-647.77850746,0.00043171,120]
[339871783,1728096657937,-679.61,0.00043171,120]
[339871784,1728096657947,-524.652044,0.00043171,120]
[339871785,1728096657957,-625.97283053,0.00043171,120]
[339871786,1728096657966,-541.73160667,0.00043171,120]
[339871787,1728096657974,-587.11569069,0.00043171,120]
[339871788,1728096657983,-826.95396163,0.00043171,120]
[339871789,1728096657992,-595.32450721,0.00043171,120]
[339871790,1728096658001,-723.72812893,0.00043171,120]
[339871791,1728096658010,-745.87995251,0.00043171,120]
[339871792,1728096658019,-505.8,0.00043189,120]
[339871793,1728096658027,-511.69,0.00043198,120]
[339871794,1728096658036,-2185.48460217,0.000432,120]
[339871795,1728096658045,-1000.0,0.000434,120]
[339871796,1728096658054,-1000.0,0.00043444,120]
[339871797,1728096658063,-627.24,0.00043444,120]
[339871798,1728096658072,-1273.88,0.00043444,120]
[339871799,1728096658080,-934.03,0.00043444,120]
[339871800,1728096658092,-505.8,0.00043463,120]
[339871801,1728096658101,-511.69,0.00043472,120]
[339871802,1728096658111,-842.08350976,0.0004369,7]
[339871803,1728096658120,-799.0,0.000437,30]
[339871804,1728096658130,-2418.00603779,0.00043718,15]
[339871805,1728096658147,-1000.0,0.00043718,120]
[339871806,1728096658156,-627.3533469,0.00043718,120]
[339871807,1728096658165,-1274.03,0.00043718,120]
[339871808,1728096658174,-1000.0,0.00043724,10]
[339871809,1728096658183,-505.97,0.00043737,120]
[339871810,1728096658192,-511.75488901,0.00043746,120]
[339871811,1728096658200,-406.57929951,0.00043861,28]
[339871812,1728096658209,-200.0,0.00044,120]
[339871813,1728096658218,-2013.94488372,0.00044,60]
[339871814,1728096658226,-150.000001,0.00044,57]
[339871815,1728096658235,-4787.60419937,0.00044096,15]
[339871816,1728096658243,-9008.87756543,0.000444,25]
[339871817,1728096658252,-220.25,0.00044522,2]
[339871818,1728096658261,-186.62835766,0.000449,120]
[339871819,1728096658270,-157.7552038,0.00045,120]
[339871820,1728096658279,-2000.0,0.00045,120]
[339871821,1728096658288,-900.53648463,0.00045,2]
[339871822,1728096658297,-1000.0,0.00045244,2]
[339871823,1728096658306,-272.44,0.00045423,120]
[339871824,1728096658315,-406.57929951,0.00045497,28]
[339871825,1728096658323,-2013.94488372,0.000455,60]
[339871826,1728096658332,-2110.0,0.000455,2]
[339871827,1728096658341,-4787.60419937,0.00045547,15]
[339871828,1728096658349,-500.0,0.00045728,10]
[339871829,1728096658358,-347.55452741,0.00045883,120]
[339871830,1728096658367,-5000.0,0.00045885,90]
[339871831,1728096658484,-150.5,0.0004597,30]
[339871832,1728096658494,-150.5,0.0004598,30]
[339871833,1728096658504,-202.0,0.0004599,30]
[339871834,1728096658513,-215.0,0.0004599,30]
[339871835,1728096658522,-209.0,0.0004599,30]
[339871836,1728096658531,-215.0,0.0004599,30]
[339871837,1728096658539,-202.0,0.0004599,30]
[339871838,1728096658549,-205.0,0.0004599,30]
[339871839,1728096658558,-202.0,0.0004599,30]
[339871840,1728096658567,-215.0,0.0004599,30]
[339871841,1728096658576,-205.0,0.0004599,30]
[339871842,1728096658585,-215.0,0.0004599,30]
[339871843,1728096658594,-202.0,0.0004599,30]
[339871844,1728096658603,-150.5,0.0004599,30]
[339871845,1728096658612,-319720.59188988,0.0004599,120]
[339871846,1728096658621,-632.02742495,0.00045998,120]
[339871847,1728096658632,-500.0,0.00045998,120]
[339871848,1728096658641,-500.0,0.00045999,120]
[339871849,1728096658650,-500.0,0.00045999,120]
[339871850,1728096658659,-500.0,0.00045999,120]
[339871851,1728096658668,-500.0,0.00045999,120]
[339871852,1728096658676,-500.0,0.00045999,120]
[339871853,1728096658685,-500.0,0.00045999,120]
[339871854,1728096658695,-500.0,0.00045999,120]
[339871855,1728096658704,-500.0,0.00045999,120]
[339871856,1728096658713,-500.0,0.00045999,120]
[339871857,1728096658723,-500.0,0.00045999,120]
[339871858,1728096658732,-500.0,0.00045999,120]
[339871859,1728096658742,-500.0,0.00045999,120]
[339871860,1728096658752,-911.86,0.00045999,120]
[339871861,1728096658761,-500.0,0.00045999,120]
[339871862,1728096658771,-500.0,0.00045999,120]
[339871863,1728096658779,-500.0,0.00045999,120]
[339871864,1728096658788,-500.0,0.00045999,120]
[339871865,1728096658797,-500.0,0.00045999,120]
[339871866,1728096658806,-500.0,0.00045999,120]
[339871867,1728096658815,-500.0,0.00045999,120]
[339871868,1728096658824,-500.0,0.00045999,120]
[339871869,1728096658833,-500.0,0.00045999,120]
[339871870,1728096658842,-500.0,0.00045999,120]
[339871871,1728096658851,-500.0,0.00045999,120]
[339871872,1728096658860,-500.0,0.00045999,120]
[339871873,1728096658869,-500.0,0.00045999,120]
[339871874,1728096658879,-500.0,0.00045999,120]
[339871875,1728096658887,-500.0,0.00045999,120]
[339871876,1728096658896,-500.0,0.00045999,120]
[339871877,1728096658905,-190.94673223,0.00045999,120]
[339871878,1728096658915,-51232.39759082,0.00046,120]
[339871879,1728096658924,-20000.00000008,0.00046,120]
[339871880,1728096658934,-500.0,0.00046,120]
[339871881,1728096658944,-100000.0,0.00046,120]
[339871882,1728096658953,-17685.73042792,0.00046,120]
[339871883,1728096658962,-7587.33354626,0.00046,120]
[339871884,1728096658971,-2110.0,0.00046,2]
[339871885,1728096658979,-4000.0,0.00046,120]
[339871886,1728096658988,-799.0,0.00046,30]
[339871887,1728096658997,-402.701181,0.00046,30]
[339871888,1728096659006,-157.10051,0.00046148,119]
[339871889,1728096659015,-500.0,0.00046273,120]
[339871890,1728096659024,-500.0,0.00046273,120]
[339871891,1728096659034,-500.0,0.00046273,120]
[339871892,1728096659045,-500.0,0.00046273,120]
[339871893,1728096659054,-500.0,0.00046273,120]
[339871894,1728096659064,-500.0,0.00046273,120]
[339871895,1728096659074,-500.0,0.00046273,120]
[339871896,1728096659086,-500.0,0.00046273,120]
[339871897,1728096659100,-500.0,0.00046273,120]
[339871898,1728096659111,-500.0,0.00046273,120]
[339871899,1728096659120,-500.0,0.00046273,120]
[339871900,1728096659133,-500.0,0.00046273,120]
[339871901,1728096659143,-911.86,0.00046273,120]
[339871902,1728096659151,-500.0,0.00046273,120]
[339871903,1728096659160,-500.0,0.00046273,120]
[339871904,1728096659171,-500.0,0.00046273,120]
[339871905,1728096659180,-500.0,0.00046273,120]
[339871906,1728096659189,-495.09656994,0.00046273,120]
[339871907,1728096659198,-500.0,0.00046273,120]
[339871908,1728096659208,-500.0,0.00046273,120]
[339871909,1728096659217,-500.0,0.00046273,120]
[339871910,1728096659227,-500.0,0.00046273,120]
[339871911,1728096659237,-500.0,0.00046273,120]
[339871912,1728096659248,-500.0,0.00046273,120]
[339871913,1728096659259,-502.0840894,0.00046273,120]
[339871914,1728096659269,-500.0,0.00046273,120]
[339871915,1728096659280,-500.0,0.00046273,120]
[339871916,1728096659289,-500.0,0.00046273,120]
[339871917,1728096659298,-500.0,0.00046299,120]
[339871918,1728096659307,-102134.70539531,0.000463,120]
[339871919,1728096659317,-245.77591394,0.00046398,2]
[339871920,1728096659326,-12085.3579775,0.00046398,2]
[339871921,1728096659335,-500.0,0.00046399,120]
[339871922,1728096659345,-500.0,0.00046399,120]
[339871923,1728096659354,-500.0,0.00046399,120]
[339871924,1728096659364,-500.0,0.00046399,120]
[339871925,1728096659376,-250.0,0.00046399,14]
[339871926,1728096659386,-54990.89819896,0.000464,120]
[339871927,1728096659463,-835122.99773837,0.000464,120]
[339871928,1728096659474,-278.83590512,0.000464,120]
[339871929,1728096659485,-339.1733676,0.000464,120]
[339871930,1728096659496,-758.11221771,0.000464,120]
[339871931,1728096659507,-3444.51359154,0.000464,120]
[339871932,1728096659518,-899.99999997,0.000464,120]
[339871933,1728096659539,-453.94095139,0.00038512,120]
[339871934,1728096659550,-46.05904861,0.00038512,120]
[339871935,1728096659559,-500.0,0.00038512,120]
[339871936,1728096659570,-3023.17592844,0.000464,120]
[339871937,1728096659581,-1050.7663367,0.000464,120]
[339871938,1728096659592,-438.2696023,0.000464,120]
[339871939,1728096659604,-8749.44770489,0.000464,120]
[339871940,1728096659615,-783.60560307,0.000464,120]
[339871941,1728096659626,-1952.74361478,0.000464,120]
[339871942,1728096659638,-11670.03628062,0.000464,120]
[339871943,1728096659648,-1710.00000005,0.000464,120]
[339871944,1728096659659,-4168.2007409,0.000464,120]
[339871945,1728096659670,-1508.20205936,0.000464,120]
[339871946,1728096659680,-1031.66794064,0.000464,120]
[339871947,1728096659692,-5898.78054719,0.000464,120]
[339871948,1728096659703,-18639.8583427,0.000464,120]
[339871949,1728096659714,-782.42871167,0.000464,120]
[339871950,1728096659724,-1203.88782761,0.000464,120]
[339871951,1728096659735,-705.3146958,0.000464,120]
[339871952,1728096659840,-500.0,0.00038786,120]
[339871953,1728096659850,-500.0,0.00038786,120]
[339871954,1728096659860,-500.0,0.00038787,120]
[339871955,1728096659869,-500.0,0.0003906,120]
[339871956,1728096659879,-500.0,0.0003906,120]
[339871957,1728096659887,-500.0,0.00039061,120]
[339871958,1728096659896,-419.99457149,0.00039334,120]
[339871959,1728096659907,-80.00542851,0.00039334,120]
[339871960,1728096659917,-500.0,0.00039334,120]
[339871961,1728096659925,-500.0,0.00039335,120]
[339871962,1728096659935,-500.0,0.00039608,120]
[339871963,1728096659944,-500.0,0.00039608,120]
[339871964,1728096659953,-500.0,0.00039609,120]
[339871965,1728096659962,-500.0,0.00039882,120]
[339871966,1728096659970,-644.13352911,0.00039882,120]
[339871967,1728096659979,-500.0,0.00039883,120]
[339871968,1728096659988,-500.0,0.00040157,120]
[339871969,1728096659997,-40849.08304401,0.000464,120]
[339871970,1728096660006,-151.100504,0.00046498,120]
[339871971,1728096660015,-6390.234037,0.000465,30]
[339871972,1728096660024,-361.01029499,0.00046542,120]
[339871973,1728096660034,-500.0,0.00046547,120]
[339871974,1728096660043,-500.0,0.00046547,120]
[339871975,1728096660052,-500.0,0.00046547,120]
[339871976,1728096660061,-500.0,0.00046547,120]
[339871977,1728096660071,-500.0,0.00046547,120]
[339871978,1728096660080,-500.0,0.00046547,120]
[339871979,1728096660091,-500.0,0.00046547,120]
[339871980,1728096660101,-500.0,0.00046547,120]
[339871981,1728096660111,-500.0,0.00046547,120]
[339871982,1728096660120,-500.0,0.00046547,120]
[339871983,1728096660132,-500.0,0.00046547,120]
[339871984,1728096660140,-500.0,0.00046547,120]
[339871985,1728096660149,-911.86,0.00046547,120]
[339871986,1728096660159,-500.0,0.00046547,120]
[339871987,1728096660168,-500.0,0.00046547,120]
[339871988,1728096660177,-500.0,0.00046547,120]
[339871989,1728096660186,-522.30985152,0.00046547,120]
[339871990,1728096660195,-500.0,0.00046547,120]
[339871991,1728096660205,-500.0,0.00046547,120]
[339871992,1728096660214,-518.38309972,0.00046547,120]
[339871993,1728096660223,-500.0,0.00046547,120]
[339871994,1728096660233,-500.0,0.00046547,120]
[339871995,1728096660241,-500.0,0.00046547,120]
[339871996,1728096660251,-500.0,0.00046547,120]
[339871997,1728096660262,-500.0,0.00046547,120]
[339871998,1728096660271,-509.9335715,0.00046547,120]
[339871999,1728096660280,-399.30578691,0.00046558,120]
[339872000,1728096660289,-500.0,0.00046692,30]
[339872001,1728096660299,-500.0,0.00046692,30]
[339872002,1728096660310,-500.0,0.00046692,30]
[339872003,1728096660319,-220.25,0.00046786,2]
[339872004,1728096660330,-500.0,0.00046821,120]
[339872005,1728096660339,-500.0,0.00046821,120]
[339872006,1728096660350,-500.0,0.00046821,120]
[339872007,1728096660360,-500.0,0.00046821,120]
[339872008,1728096660369,-500.0,0.00046821,120]
[339872009,1728096660380,-500.0,0.00046821,120]
[339872010,1728096660389,-500.0,0.00046821,120]
[339872011,1728096660398,-500.0,0.00046821,120]
[339872012,1728096660407,-500.0,0.00046821,120]
[339872013,1728096660417,-500.0,0.00046821,120]
[339872014,1728096660427,-500.0,0.00046821,120]
[339872015,1728096660437,-424.53425814,0.00046821,120]
[339872016,1728096660447,-911.86,0.00046821,120]
[339872017,1728096660456,-500.0,0.00046821,120]
[339872018,1728096660465,-500.0,0.00046821,120]
[339872019,1728096660475,-500.0,0.00046821,120]
[339872020,1728096660485,-500.0,0.00046821,120]
[339872021,1728096660494,-500.0,0.00046821,120]
[339872022,1728096660503,-500.0,0.00046821,120]
[339872023,1728096660513,-500.0,0.00046821,120]
[339872024,1728096660523,-232.2398972,0.00046821,120]
[339872025,1728096660532,-500.0,0.00046821,120]
[339872026,1728096660542,-500.0,0.00046821,120]
[339872027,1728096660551,-178.0,0.000469,50]
[339872028,1728096660561,-4787.60419937,0.00046998,15]
[339872029,1728096660570,-8682.09628021,0.00046999,7]
[339872030,1728096660580,-500.0,0.00046999,120]
[339872031,1728096660589,-500.0,0.00046999,120]
[339872032,1728096660598,-500.0,0.00046999,120]
[339872033,1728096660608,-498.962,0.00046999,120]
[339872034,1728096660618,-50000.0,0.00047,37]
[339872035,1728096660627,-50000.0,0.00047,47]
[339872036,1728096660636,-2013.94488372,0.00047,60]
[339872037,1728096660646,-136979.00126692,0.00047,120]
[339872038,1728096660668,-505.16047833,0.00040156,120]
[339872039,1728096660677,-568.43063609,0.00047,120]
[339872040,1728096660689,-1214.79818361,0.00047,120]
[339872041,1728096660751,-500.0,0.00040431,120]
[339872042,1728096660761,-500.0,0.00040705,120]
[339872043,1728096660770,-500.0,0.00040979,120]
[339872044,1728096660779,-259.8369796,0.00041253,120]
[339872045,1728096660794,-240.1630204,0.00041253,120]
[339872046,1728096660803,-500.0,0.00041527,120]
[339872047,1728096660812,-617.58122233,0.00041801,120]
[339872048,1728096660821,-35512.65747858,0.00047,120]
[339872049,1728096660832,-580.494935,0.00047,120]
[339872050,1728096660854,-3119.57179405,0.00047,120]
[339872051,1728096660865,-1056.06830296,0.00047,120]
[339872052,1728096660876,-313.90484896,0.00047,120]
[339872053,1728096660947,-940.87063428,0.00047,120]
[339872054,1728096661311,-14565.94158426,0.00047,120]
[339872055,1728096661333,-1143.08197652,0.00047,120]
[339872056,1728097085412,173.11,0.00010959,2]
[339872057,1728097279886,415.2,0.00013,2]
[339872058,1728097645918,250.0,0.00013,2]
[339872063,1728097831760,-300.0,0.00015,2]